{"text_format":"3","workbook":"xlsx","n_sheets":6,"sheets":["Pradžia","Ataskaitų_sritis","Išlaidos ir pajamos","Biudžeto ataskaita","Duomenų sąrašai","Kategorija „PivotTable“"],"not_rendered":{"charts":3,"defined_names":23,"pivot_tables":2},"read":"whole","date_system":"1900"}

{"sheet":"Pradžia","index":0,"n_rows":8,"n_cols":2,"rows_kept":8}
[null,"Apie šabloną"]
[null,"Naudokite šį šabloną, kad sukurtumėte pusės mėnesio namų biudžetą."]
[null,"Ataskaitų srities darbalapyje yra mėnesio ir metų bendrų sumų diagramos ir pusės mėnesio pajamų ir išlaidų lentelė."]
[null,"Darbalapyje Duomenų sąrašai įveskite kategorijas, o darbalapyje Pajamos ir išlaidos – reikšmes."]
[null,"Atnaujinkite „PivotTable“ darbalapyje Biudžeto ataskaita."]
[null,"Pastaba."]
[null,"Papildomos instrukcijos pateikiamos visų darbalapių A stulpelyje. Šis tekstas buvo specialiai paslėptas. Norėdami pašalinti tekstą, pasirinkite A stulpelį, tada pasirinkite Naikinti. "]
[null,"Norėdami sužinoti daugiau apie lentelę, lentelėje paspauskite SHIFT, tada – F10, pasirinkite parinktį LENTELĖ, tada pasirinkite ALTERNATYVUSIS TEKSTAS. Jei naudojate „PivotTable“, laikydami nuspaudę klavišą SHIFT ir F10 lentelėje, pasirinkite PIVOTTABLE PARINKTYS, tada pasirinkite skirtuką ALTERNATYVUSIS TEKSTAS."]

{"sheet":"Ataskaitų_sritis","index":1,"n_rows":12,"n_cols":15,"rows_kept":12,"merged":[[0,1,0,13],[1,2,1,7]]}
["Šiame darbalapyje sukurkite ataskaitų sritį mėnesio ir metų bendroms sumoms bei pusės mėnesio pajamoms ir išlaidoms. Naudingos instrukcijos, kaip naudoti šį darbalapį, pateiktos šio stulpelio langeliuose. Šios darbaknygės pavadinimas yra langelyje dešinėje, o darbalapio pavadinimas – O1 langelyje.","Pusės mėnesio namų biudžetas",{"$nulls":12},"ATASKAITŲ SRITIS"]
["Pasirinkite langelio C2 slankiklį, kad pakeistumėte mėnesį langelyje dešinėje, o kad pakeistumėte metus langelyje I2, pasirinkite slankiklį langelyje J2.",{"$f":"CHOOSE(Mėnesio_skaičius,\"SAUSIS\",\"VASARIS\",\"KOVAS\",\"BALANDIS\",\"GEGUŽĖ\",\"BIRŽELIS\",\"LIEPA\",\"RUGPJŪTIS\",\"RUGSĖJIS\",\"SPALIS\",\"LAPKRITIS\",\"GRUODIS\")","v":"GRUODIS"},12,{"$nulls":5},{"$f":"YEAR(TODAY())","v":2022}]
["Mėnesio bendrųjų sumų žyma yra langelyje dešinėje, o metų bendrųjų sumų žyma – I3 langelyje.","MĖNESIO BENDROSIOS SUMOS",{"$nulls":6},"METINĖ BENDROJI SUMA"]
["Juostinė diagrama, kuri lygina mėnesio pajamų bendrąsias sumas ir mėnesio išlaidų bendrąsias sumas yra C4 langelyje, o juostinė diagrama, kuri lygina metų pajamų bendrąsias sumas ir metų išlaidų bendrąsias sumas yra J4 langelyje. Kitas nurodymas yra A8 langelyje.","PAJAMOS",null,{"$f":"Mėnesio_išlaidų_sumos","v":{"v":0,"d":"0 EUR"}},{"$nulls":4},"PAJAMOS",null,null,{"$f":"Metinių_išlaidų_sumos","v":{"v":10742,"d":"10,742 EUR"}}]
[null,"IŠLAIDOS",null,{"$f":"Mėnesio_pajamų_sumos","v":{"v":0,"d":"0 EUR"}},{"$nulls":4},"IŠLAIDOS",null,null,{"$f":"Metinių_pajamų_sumos","v":{"v":13200,"d":"13,200 EUR"}}]
[]
[]
["Ataskaitų srities lentelė, prasidedanti langelyje dešinėje, automatiškai atnaujinama.","Kategorija","SAUSIS","VASARIS","KOVAS","BALANDIS","GEGUŽĖ","BIRŽELIS","LIEPA","RUGPJŪTIS","RUGSĖJIS","SPALIS","LAPKRITIS","GRUODIS","Miniatiūrinė diagrama"]
[null,"Pajamos nuo 1 iki 15",{"$f":"SUMIFS(Pajamos[SUMA],Pajamos[DATA],\"<=\"&Data_vid,Pajamos[DATA],\">=\"&Data_prad)","v":{"v":0,"d":"0.00 EUR"}},{"$f":"SUMIFS(Pajamos[SUMA],Pajamos[DATA],\"<=\"&Data_vid,Pajamos[DATA],\">=\"&Data_prad)","v":{"v":0,"d":"0.00 EUR"}},{"$f":"SUMIFS(Pajamos[SUMA],Pajamos[DATA],\"<=\"&Data_vid,Pajamos[DATA],\">=\"&Data_prad)","v":{"v":1300,"d":"1,300.00 EUR"}},{"$f":"SUMIFS(Pajamos[SUMA],Pajamos[DATA],\"<=\"&Data_vid,Pajamos[DATA],\">=\"&Data_prad)","v":{"v":2600,"d":"2,600.00 EUR"}},{"$f":"SUMIFS(Pajamos[SUMA],Pajamos[DATA],\"<=\"&Data_vid,Pajamos[DATA],\">=\"&Data_prad)","v":{"v":2600,"d":"2,600.00 EUR"}},{"$f":"SUMIFS(Pajamos[SUMA],Pajamos[DATA],\"<=\"&Data_vid,Pajamos[DATA],\">=\"&Data_prad)","v":{"v":0,"d":"0.00 EUR"}},{"$f":"SUMIFS(Pajamos[SUMA],Pajamos[DATA],\"<=\"&Data_vid,Pajamos[DATA],\">=\"&Data_prad)","v":{"v":0,"d":"0.00 EUR"}},{"$f":"SUMIFS(Pajamos[SUMA],Pajamos[DATA],\"<=\"&Data_vid,Pajamos[DATA],\">=\"&Data_prad)","v":{"v":0,"d":"0.00 EUR"}},{"$f":"SUMIFS(Pajamos[SUMA],Pajamos[DATA],\"<=\"&Data_vid,Pajamos[DATA],\">=\"&Data_prad)","v":{"v":0,"d":"0.00 EUR"}},{"$f":"SUMIFS(Pajamos[SUMA],Pajamos[DATA],\"<=\"&Data_vid,Pajamos[DATA],\">=\"&Data_prad)","v":{"v":0,"d":"0.00 EUR"}},{"$f":"SUMIFS(Pajamos[SUMA],Pajamos[DATA],\"<=\"&Data_vid,Pajamos[DATA],\">=\"&Data_prad)","v":{"v":0,"d":"0.00 EUR"}},{"$f":"SUMIFS(Pajamos[SUMA],Pajamos[DATA],\"<=\"&Data_vid,Pajamos[DATA],\">=\"&Data_prad)","v":{"v":0,"d":"0.00 EUR"}}]
[null,"Pajamos nuo 16 iki mėnesio pabaigos",{"$f":"SUMIFS(Pajamos[SUMA],Pajamos[DATA],\"<=\"&Data_pab,Pajamos[DATA],\">=\"&Data_vid+1)","v":{"v":0,"d":"0.00 EUR"}},{"$f":"SUMIFS(Pajamos[SUMA],Pajamos[DATA],\"<=\"&Data_pab,Pajamos[DATA],\">=\"&Data_vid+1)","v":{"v":0,"d":"0.00 EUR"}},{"$f":"SUMIFS(Pajamos[SUMA],Pajamos[DATA],\"<=\"&Data_pab,Pajamos[DATA],\">=\"&Data_vid+1)","v":{"v":3100,"d":"3,100.00 EUR"}},{"$f":"SUMIFS(Pajamos[SUMA],Pajamos[DATA],\"<=\"&Data_pab,Pajamos[DATA],\">=\"&Data_vid+1)","v":{"v":3100,"d":"3,100.00 EUR"}},{"$f":"SUMIFS(Pajamos[SUMA],Pajamos[DATA],\"<=\"&Data_pab,Pajamos[DATA],\">=\"&Data_vid+1)","v":{"v":500,"d":"500.00 EUR"}},{"$f":"SUMIFS(Pajamos[SUMA],Pajamos[DATA],\"<=\"&Data_pab,Pajamos[DATA],\">=\"&Data_vid+1)","v":{"v":0,"d":"0.00 EUR"}},{"$f":"SUMIFS(Pajamos[SUMA],Pajamos[DATA],\"<=\"&Data_pab,Pajamos[DATA],\">=\"&Data_vid+1)","v":{"v":0,"d":"0.00 EUR"}},{"$f":"SUMIFS(Pajamos[SUMA],Pajamos[DATA],\"<=\"&Data_pab,Pajamos[DATA],\">=\"&Data_vid+1)","v":{"v":0,"d":"0.00 EUR"}},{"$f":"SUMIFS(Pajamos[SUMA],Pajamos[DATA],\"<=\"&Data_pab,Pajamos[DATA],\">=\"&Data_vid+1)","v":{"v":0,"d":"0.00 EUR"}},{"$f":"SUMIFS(Pajamos[SUMA],Pajamos[DATA],\"<=\"&Data_pab,Pajamos[DATA],\">=\"&Data_vid+1)","v":{"v":0,"d":"0.00 EUR"}},{"$f":"SUMIFS(Pajamos[SUMA],Pajamos[DATA],\"<=\"&Data_pab,Pajamos[DATA],\">=\"&Data_vid+1)","v":{"v":0,"d":"0.00 EUR"}},{"$f":"SUMIFS(Pajamos[SUMA],Pajamos[DATA],\"<=\"&Data_pab,Pajamos[DATA],\">=\"&Data_vid+1)","v":{"v":0,"d":"0.00 EUR"}}]
[null,"Išlaidos nuo 1 iki 15",{"$f":"SUMIFS(Išlaidos[SUMA],Išlaidos[DATA],\"<=\"&Data_vid+1,Išlaidos[DATA],\">=\"&Data_prad)","v":{"v":0,"d":"0.00 EUR"}},{"$f":"SUMIFS(Išlaidos[SUMA],Išlaidos[DATA],\"<=\"&Data_vid+1,Išlaidos[DATA],\">=\"&Data_prad)","v":{"v":0,"d":"0.00 EUR"}},{"$f":"SUMIFS(Išlaidos[SUMA],Išlaidos[DATA],\"<=\"&Data_vid+1,Išlaidos[DATA],\">=\"&Data_prad)","v":{"v":1225,"d":"1,225.00 EUR"}},{"$f":"SUMIFS(Išlaidos[SUMA],Išlaidos[DATA],\"<=\"&Data_vid+1,Išlaidos[DATA],\">=\"&Data_prad)","v":{"v":5150,"d":"5,150.00 EUR"}},{"$f":"SUMIFS(Išlaidos[SUMA],Išlaidos[DATA],\"<=\"&Data_vid+1,Išlaidos[DATA],\">=\"&Data_prad)","v":{"v":2792,"d":"2,792.00 EUR"}},{"$f":"SUMIFS(Išlaidos[SUMA],Išlaidos[DATA],\"<=\"&Data_vid+1,Išlaidos[DATA],\">=\"&Data_prad)","v":{"v":0,"d":"0.00 EUR"}},{"$f":"SUMIFS(Išlaidos[SUMA],Išlaidos[DATA],\"<=\"&Data_vid+1,Išlaidos[DATA],\">=\"&Data_prad)","v":{"v":0,"d":"0.00 EUR"}},{"$f":"SUMIFS(Išlaidos[SUMA],Išlaidos[DATA],\"<=\"&Data_vid+1,Išlaidos[DATA],\">=\"&Data_prad)","v":{"v":0,"d":"0.00 EUR"}},{"$f":"SUMIFS(Išlaidos[SUMA],Išlaidos[DATA],\"<=\"&Data_vid+1,Išlaidos[DATA],\">=\"&Data_prad)","v":{"v":0,"d":"0.00 EUR"}},{"$f":"SUMIFS(Išlaidos[SUMA],Išlaidos[DATA],\"<=\"&Data_vid+1,Išlaidos[DATA],\">=\"&Data_prad)","v":{"v":0,"d":"0.00 EUR"}},{"$f":"SUMIFS(Išlaidos[SUMA],Išlaidos[DATA],\"<=\"&Data_vid+1,Išlaidos[DATA],\">=\"&Data_prad)","v":{"v":0,"d":"0.00 EUR"}},{"$f":"SUMIFS(Išlaidos[SUMA],Išlaidos[DATA],\"<=\"&Data_vid+1,Išlaidos[DATA],\">=\"&Data_prad)","v":{"v":0,"d":"0.00 EUR"}}]
[null,"Išlaidos nuo 16 iki mėnesio pabaigos",{"$f":"SUMIFS(Išlaidos[SUMA],Išlaidos[DATA],\"<=\"&Data_pab,Išlaidos[DATA],\">=\"&Data_vid+1)","v":{"v":0,"d":"0.00 EUR"}},{"$f":"SUMIFS(Išlaidos[SUMA],Išlaidos[DATA],\"<=\"&Data_pab,Išlaidos[DATA],\">=\"&Data_vid+1)","v":{"v":0,"d":"0.00 EUR"}},{"$f":"SUMIFS(Išlaidos[SUMA],Išlaidos[DATA],\"<=\"&Data_pab,Išlaidos[DATA],\">=\"&Data_vid+1)","v":{"v":200,"d":"200.00 EUR"}},{"$f":"SUMIFS(Išlaidos[SUMA],Išlaidos[DATA],\"<=\"&Data_pab,Išlaidos[DATA],\">=\"&Data_vid+1)","v":{"v":875,"d":"875.00 EUR"}},{"$f":"SUMIFS(Išlaidos[SUMA],Išlaidos[DATA],\"<=\"&Data_pab,Išlaidos[DATA],\">=\"&Data_vid+1)","v":{"v":500,"d":"500.00 EUR"}},{"$f":"SUMIFS(Išlaidos[SUMA],Išlaidos[DATA],\"<=\"&Data_pab,Išlaidos[DATA],\">=\"&Data_vid+1)","v":{"v":0,"d":"0.00 EUR"}},{"$f":"SUMIFS(Išlaidos[SUMA],Išlaidos[DATA],\"<=\"&Data_pab,Išlaidos[DATA],\">=\"&Data_vid+1)","v":{"v":0,"d":"0.00 EUR"}},{"$f":"SUMIFS(Išlaidos[SUMA],Išlaidos[DATA],\"<=\"&Data_pab,Išlaidos[DATA],\">=\"&Data_vid+1)","v":{"v":0,"d":"0.00 EUR"}},{"$f":"SUMIFS(Išlaidos[SUMA],Išlaidos[DATA],\"<=\"&Data_pab,Išlaidos[DATA],\">=\"&Data_vid+1)","v":{"v":0,"d":"0.00 EUR"}},{"$f":"SUMIFS(Išlaidos[SUMA],Išlaidos[DATA],\"<=\"&Data_pab,Išlaidos[DATA],\">=\"&Data_vid+1)","v":{"v":0,"d":"0.00 EUR"}},{"$f":"SUMIFS(Išlaidos[SUMA],Išlaidos[DATA],\"<=\"&Data_pab,Išlaidos[DATA],\">=\"&Data_vid+1)","v":{"v":0,"d":"0.00 EUR"}},{"$f":"SUMIFS(Išlaidos[SUMA],Išlaidos[DATA],\"<=\"&Data_pab,Išlaidos[DATA],\">=\"&Data_vid+1)","v":{"v":0,"d":"0.00 EUR"}}]

{"sheet":"Išlaidos ir pajamos","index":2,"n_rows":36,"n_cols":9,"rows_kept":36,"merged":[[0,1,0,6],[0,7,0,8]]}
["Šiame darbalapyje sukurkite pajamų ir išlaidų sąrašą. Naudingos instrukcijos, kaip naudoti šį darbalapį, pateiktos šio stulpelio langeliuose. Darbaknygės pavadinimas yra langelyje dešinėje, o darbalapio pavadinimas – H1 langelyje.",{"$f":"Pusės_mėnesio_namų_biudžeto_pavadinimas","v":"Pusės mėnesio namų biudžetas"},{"$nulls":5},"PAJAMOS IR IŠLAIDOS"]
["Pajamų žyma yra langelyje dešinėje, o išlaidų žyma – F2 langelyje.","PAJAMOS",{"$nulls":3},"IŠLAIDOS"]
["Įveskite informaciją lentelėje Pajamos, pradėdami langelyje dešinėje, ir lentelėje Išlaidos, pradėdami F3 langelyje.","DATA","APRAŠYMAS","SUMA",null,"DATA","KATEGORIJA","APRAŠYMAS","SUMA"]
[null,{"$f":"TODAY()","v":"2022-05-18"},"Priedas",{"v":500,"d":"500.00 EUR"},null,{"$f":"TODAY()","v":"2022-05-18"},"Medicininės išlaidos","Draudimas",{"v":500,"d":"500.00 EUR"}]
[null,{"$f":"TODAY()-14","v":"2022-05-04"},"Dovydo atlyginimas",{"v":1300,"d":"1,300.00 EUR"},null,{"$f":"TODAY()-7","v":"2022-05-11"},"Namų ūkis","Būsto paskola",{"v":1000,"d":"1,000.00 EUR"}]
[null,{"$f":"TODAY()-14","v":"2022-05-04"},"Emilijos atlyginimas",{"v":1300,"d":"1,300.00 EUR"},null,"2022-05-11","Namų ūkis","Elektra",{"v":100,"d":"100.00 EUR"}]
[null,{"$f":"TODAY()-28","v":"2022-04-20"},"Dovydo atlyginimas",{"v":1500,"d":"1,500.00 EUR"},null,"2022-05-11","Namų ūkis","Vanduo / kanalizacija",{"v":50,"d":"50.00 EUR"}]
[null,{"$f":"TODAY()-28","v":"2022-04-20"},"Emilijos atlyginimas",{"v":1600,"d":"1,600.00 EUR"},null,"2022-05-11","Namų ūkis","Šiukšlės",{"v":25,"d":"25.00 EUR"}]
[null,{"$f":"TODAY()-42","v":"2022-04-06"},"Dovydo atlyginimas",{"v":1300,"d":"1,300.00 EUR"},null,"2022-05-11","Namų ūkis","Mobilusis telefonas",{"v":100,"d":"100.00 EUR"}]
[null,{"$f":"TODAY()-42","v":"2022-04-06"},"Emilijos atlyginimas",{"v":1300,"d":"1,300.00 EUR"},null,"2022-05-11","Namų ūkis","Mobilusis telefonas",{"v":30,"d":"30.00 EUR"}]
[null,{"$f":"TODAY()-56","v":"2022-03-23"},"Dovydo atlyginimas",{"v":1500,"d":"1,500.00 EUR"},null,"2022-05-11","Namų ūkis","Būsto paskola",{"v":50,"d":"50.00 EUR"}]
[null,{"$f":"TODAY()-56","v":"2022-03-23"},"Emilijos atlyginimas",{"v":1600,"d":"1,600.00 EUR"},null,"2022-05-11","Namų ūkis","Mobilusis telefonas",{"v":50,"d":"50.00 EUR"}]
[null,{"$f":"TODAY()-70","v":"2022-03-09"},"Dovydo atlyginimas",{"v":1300,"d":"1,300.00 EUR"},null,{"$f":"TODAY()-7","v":"2022-05-11"},"Namų ūkis","Mobilusis telefonas",{"v":25,"d":"25.00 EUR"}]
[{"$nulls":5},{"$f":"TODAY()-8","v":"2022-05-10"},"Namų ūkis","Elektra",{"v":100,"d":"100.00 EUR"}]
[{"$nulls":5},{"$f":"TODAY()-9","v":"2022-05-09"},"Pramogos","Filmai",{"v":37,"d":"37.00 EUR"}]
[{"$nulls":5},{"$f":"TODAY()-10","v":"2022-05-08"},"Maistas","Maisto prekės",{"v":350,"d":"350.00 EUR"}]
[{"$nulls":5},{"$f":"TODAY()-11","v":"2022-05-07"},"Maistas","Restoranai",{"v":75,"d":"75.00 EUR"}]
[{"$nulls":5},{"$f":"TODAY()-12","v":"2022-05-06"},"Vaikai","Dienpinigiai",{"v":150,"d":"150.00 EUR"}]
[{"$nulls":5},{"$f":"TODAY()-13","v":"2022-05-05"},"Investicijų sąskaitos","Santaupos",{"v":250,"d":"250.00 EUR"}]
[{"$nulls":5},{"$f":"TODAY()-14","v":"2022-05-04"},"Investicijų sąskaitos","Investicijų sąskaita",{"v":250,"d":"250.00 EUR"}]
[{"$nulls":5},{"$f":"TODAY()-15","v":"2022-05-03"},"Asmeninė","Sveikata / sporto klubas",{"v":100,"d":"100.00 EUR"}]
[{"$nulls":5},{"$f":"TODAY()-16","v":"2022-05-02"},"Gyvūnai","Maistas",{"v":50,"d":"50.00 EUR"}]
[{"$nulls":5},{"$f":"TODAY()-20","v":"2022-04-28"},"Gyvūnai","Priežiūra",{"v":50,"d":"50.00 EUR"}]
[{"$nulls":5},{"$f":"TODAY()-20","v":"2022-04-28"},"Gyvūnai","Kita",{"v":50,"d":"50.00 EUR"}]
[{"$nulls":5},{"$f":"TODAY()-25","v":"2022-04-23"},"Transportas","1 automobilio įmoka ",{"v":300,"d":"300.00 EUR"}]
[{"$nulls":5},{"$f":"TODAY()-25","v":"2022-04-23"},"Transportas","2 automobilio įmoka ",{"v":350,"d":"350.00 EUR"}]
[{"$nulls":5},{"$f":"TODAY()-25","v":"2022-04-23"},"Transportas","Automobilio draudimas",{"v":50,"d":"50.00 EUR"}]
[{"$nulls":5},{"$f":"TODAY()-30","v":"2022-04-18"},"Transportas","Kuras",{"v":50,"d":"50.00 EUR"}]
[{"$nulls":5},{"$f":"TODAY()-31","v":"2022-04-17"},"Transportas","Kuras",{"v":25,"d":"25.00 EUR"}]
[{"$nulls":5},{"$f":"TODAY()-42","v":"2022-04-06"},"Transportas","2 automobilio įmoka ",{"v":150,"d":"150.00 EUR"}]
[{"$nulls":5},{"$f":"TODAY()-45","v":"2022-04-03"},"Namų ūkis","Būsto paskola",{"v":5000,"d":"5,000.00 EUR"}]
[{"$nulls":5},{"$f":"TODAY()-50","v":"2022-03-29"},"Namų ūkis","Elektra",{"v":200,"d":"200.00 EUR"}]
[{"$nulls":5},{"$f":"TODAY()-65","v":"2022-03-14"},"Namų ūkis","Mobilusis telefonas",{"v":100,"d":"100.00 EUR"}]
[{"$nulls":5},{"$f":"TODAY()-70","v":"2022-03-09"},"Namų ūkis","Šiukšlės",{"v":50,"d":"50.00 EUR"}]
[{"$nulls":5},{"$f":"TODAY()-75","v":"2022-03-04"},"Namų ūkis","Būsto paskola",{"v":1000,"d":"1,000.00 EUR"}]
[{"$nulls":5},{"$f":"TODAY()-78","v":"2022-03-01"},"Pramogos","Filmai",{"v":75,"d":"75.00 EUR"}]

{"sheet":"Biudžeto ataskaita","index":3,"n_rows":26,"n_cols":6,"rows_kept":26,"merged":[[0,1,0,4],[1,1,1,3],[4,3,4,5]]}
["Šiame darbalapyje sukurkite biudžeto ataskaitą. Naudingos instrukcijos, kaip naudoti šį darbalapį, pateiktos šio stulpelio langeliuose. Darbaknygės pavadinimas yra langelyje dešinėje, o darbalapio pavadinimas – F1 langelyje.",{"$f":"Pusės_mėnesio_namų_biudžeto_pavadinimas","v":"Pusės mėnesio namų biudžetas"},{"$nulls":3},"BIUDŽETO ATASKAITA"]
["Pasirinkite metus, ketvirčius, mėnesius arba dienas ir naudokite dešiniame langelyje esantį slankiklį, kad gautumėte išlaidų „PivotTable“ pasirinktam laikotarpiui. Kategorijos duomenų filtras, skirtas filtruoti „PivotTable“ duomenis E2 langelyje ir Aprašo duomenų filtras – F2 langelyje.","Filtravimo laiko panavimo juosta yra šiame langelyje.",null,null,"Duomenų filtras, skirtas „PivotTable“ duomenims filtruoti pagal kategoriją, yra šiame langelyje.","Duomenų filtras, skirtas filtruoti „PivotTable“ duomenis pagal aprašą, yra šiame langelyje."]
["Patarimas pateikiamas langelyje dešinėje.","Paspauskite Shift + F10 išlaidų „PivotTable“, o tuomet pasirinkite Atnaujinti, kad būtų atnaujinti šiame lape esantys duomenys, arba pasirinkite Atnaujinti dalyje Analizuoti."]
["Išlaidų žyma yra langelyje dešinėje.","IŠLAIDOS"]
["„PivotTable“, kurioje rodomos išlaidos, prasideda langelyje dešinėje. Kategorijos bendrųjų sumų žyma yra langelyje D4.","Eilučių žymos","Suma iš SUMA","KATEGORIJŲ SUMOS"]
["Skritulinė diagrama, kurioje lyginamos visų kategorijų bendrosios sumos, yra D6 langelyje.","1 automobilio įmoka ",{"v":300,"d":"300.00 EUR"}]
[null,"2 automobilio įmoka ",{"v":500,"d":"500.00 EUR"}]
[null,"Automobilio draudimas",{"v":50,"d":"50.00 EUR"}]
[null,"Būsto paskola",{"v":7050,"d":"7,050.00 EUR"}]
[null,"Dienpinigiai",{"v":150,"d":"150.00 EUR"}]
[null,"Draudimas",{"v":500,"d":"500.00 EUR"}]
[null,"Elektra",{"v":400,"d":"400.00 EUR"}]
[null,"Filmai",{"v":112,"d":"112.00 EUR"}]
[null,"Investicijų sąskaita",{"v":250,"d":"250.00 EUR"}]
[null,"Kita",{"v":50,"d":"50.00 EUR"}]
[null,"Kuras",{"v":75,"d":"75.00 EUR"}]
[null,"Maistas",{"v":50,"d":"50.00 EUR"}]
[null,"Maisto prekės",{"v":350,"d":"350.00 EUR"}]
[null,"Mobilusis telefonas",{"v":305,"d":"305.00 EUR"}]
[null,"Priežiūra",{"v":50,"d":"50.00 EUR"}]
[null,"Restoranai",{"v":75,"d":"75.00 EUR"}]
[null,"Santaupos",{"v":250,"d":"250.00 EUR"}]
[null,"Sveikata / sporto klubas",{"v":100,"d":"100.00 EUR"}]
[null,"Šiukšlės",{"v":75,"d":"75.00 EUR"}]
[null,"Vanduo / kanalizacija",{"v":50,"d":"50.00 EUR"}]
[null,"Bendroji suma",{"v":10742,"d":"10,742.00 EUR"}]

{"sheet":"Duomenų sąrašai","index":4,"n_rows":8,"n_cols":13,"rows_kept":8,"merged":[[0,1,0,11]]}
["Šiame darbalapyje įveskite kategorijos duomenis, kad būtų užpildyti išlaidų lentelės išlaidų ir pajamų darbalapių išplečiamieji sąrašai. Norėdami atnaujinti sąrašus modifikuokite kategorijų pavadinimus arba aprašus, esančius po kiekviena kategorija. Naudingos instrukcijos, kaip naudoti šį darbalapį, pateiktos šio stulpelio langeliuose. Darbaknygės pavadinimas yra langelyje dešinėje, o darbalapio pavadinimas – M1 langelyje.",{"$f":"Pusės_mėnesio_namų_biudžeto_pavadinimas","v":"Pusės mėnesio namų biudžetas"},{"$nulls":10},"DUOMENŲ SĄRAŠAI"]
["Patarimas pateikiamas langelyje dešinėje.","SETUP         Žemiau esantys kategorijos duomenys užpildo išplečiamuosius sąrašus išlaidų lentelėje, esančioje išlaidų ir pajamų lape. Norėdami atnaujinti sąrašus modifikuokite kategorijų pavadinimus arba aprašus, esančius po kiekviena kategorija."]
["Įveskite arba modifikuokite kategorijų pavadinimus arba aprašus, esančius žemiau kiekvienos lentelės kategorijos, pradėdami nuo langelio dešinėje.","Namų ūkis","Pramogos","Maistas","Dovanos / aukos","Vaikai","Investicijų sąskaitos","Medicininės išlaidos","Kita","Asmeninė","Gyvūnai","Mokesčiai / teisinės išlaidos","Transportas"]
[null,"Būsto paskola","Filmai","Maisto prekės","Labdara 1","Drabužiai","IRA","Gydytojas / klinika","Kita","Drabužiai","Maistas","Federaliniai","1 automobilio įmoka "]
[null,"Elektra","Vaizdo įrašai / filmai","Restoranai","Labdara 2","Žaislai / žaidimai","Santaupos","Draudimas","Organizacijos mokesčiai","Plaukai / nagai","Atsargos","Šalies","2 automobilio įmoka "]
[null,"Vanduo / kanalizacija","Muzika",null,"Labdara 3","Dienpinigiai","Einamoji",null,null,"Drabužių valykla","Medicininės išlaidos","Vietiniai","Automobilio draudimas"]
[null,"Šiukšlės","Koncertai / teatras",null,"Dovana","Rinkliavos / mokesčiai","Senatvės pensijos",null,null,"Sveikata / sporto klubas","Priežiūra","Kita","Licencijavimas / registracija"]
[null,"Mobilusis telefonas","Sporto renginiai",null,null,"Mokykliniai reikmenys","Investicijų sąskaita",null,null,"Apsipirkimas","Kita","Teisininkas","Kuras"]

{"sheet":"Kategorija „PivotTable“","index":5,"n_rows":13,"n_cols":13,"rows_kept":13,"hidden":true}
[null,"Pusės mėnesio namų biudžetas",{"$nulls":10},"KATEGORIJA „PIVOT“"]
[null,"Ši „PivotTable“ yra biudžeto ataskaitos „PivotChart“ kategorijų bendrųjų sumų duomenų šaltinis. "]
[null,"Eilučių žymos","Suma iš SUMA"]
[null,"Asmeninė",{"v":100,"d":"100 EUR"}]
[null,"Gyvūnai",{"v":150,"d":"150 EUR"}]
[null,"Investicijų sąskaitos",{"v":500,"d":"500 EUR"}]
[null,"Maistas",{"v":425,"d":"425 EUR"}]
[null,"Medicininės išlaidos",{"v":500,"d":"500 EUR"}]
[null,"Namų ūkis",{"v":7880,"d":"7,880 EUR"}]
[null,"Pramogos",{"v":112,"d":"112 EUR"}]
[null,"Transportas",{"v":925,"d":"925 EUR"}]
[null,"Vaikai",{"v":150,"d":"150 EUR"}]
[null,"Bendroji suma",{"v":10742,"d":"10,742 EUR"}]